[Event "93rd German Championship 2022"]
[Site "Magdeburg"]
[Date "2022.08.18"]
[Round "7.3"]
[White "Roseneck, Jonas"]
[Black "Carlstedt, Jonathan"]
[Result "1-0"]
[ECO "A13"]
[WhiteElo "2384"]
[BlackElo "2446"]
[Annotator "TA"]
[PlyCount "59"]
[EventDate "2022.08.14"]
[EventType "swiss"]
[EventCountry "GER"]
[SourceTitle "playchess.com"]
[Source "ChessBase"]
[SourceQuality "1"]
[TimeControl "40/5400+30:1800+30"]

{[%evp 12,59,46,37,41,35,35,33,45,44,53,0,8,-30,0,0,10,-25,-19,-29,-12,-41,-22,-43,-51,-43,-51,-126,-59,-83,-70,-55,-47,-64,-27,-64,-64,-66,-35,-25,4,4,28,0,18,21,29989,29990,29998,29999]} 1. c4 {[%emt 0:00:03]} e6 {[%emt 0:00:16]} 2. Nc3 {[%emt 0:00:04]} c5 {[%emt 0:01:17][%cal Bc7c5,Bc5c4][%mdl 32]} 3. Nf3 {[%emt 0:01:47]} d5 {[%emt 0:00:38]} 4. cxd5 {[%emt 0:00:04]} exd5 {[%emt 0:00:06]} 5. d4 {[%emt 0:00:03]} Nf6 {[%emt 0:00:08]} 6. Bg5 {[%emt 0:00:04]} Be6 {[%emt 0:00:10]} 7. e3 {[%emt 0:00:03]} c4 {[%emt 0:00:16] D32: Tarrasch Defence: Sidelines and lines without g3.} 8. Be2 {[%emt 0:01:12]} Bb4 {[%emt 0:00:20]} 9. O-O {[%emt 0:00:05][%cal Oe3e4]} O-O {[%emt 0:00:33] White is slightly better.} 10. Ne5 {[%emt 0:00:37]} Nbd7 {[%emt 0:01:53] [#]} 11. e4 $146 {[%emt 0:28:16]} (11. Nxd7 $14 Qxd7 12. Bxf6 gxf6 13. Bh5) ({Predecessor:} 11. f4 Bxc3 12. bxc3 Bf5 13. g4 Be4 14. Bf3 Bxf3 15. Qxf3 Qa5 16. Nxd7 Nxd7 17. Be7 {0-1 (31) Rostovtsev,D (2302)-Shuvalova,P (2498) Chess.com INT 2022}) 11... dxe4 {[%emt 0:15:46]} 12. Nxc4 {[%emt 0:09:04]} Bxc4 {[%emt 0:25:17]} 13. Bxc4 {[%emt 0:00:20]} Qa5 {[%emt 0:00:04]} 14. Bxf6 {[%emt 0:08:54]} Nxf6 {[%emt 0:00:15]} 15. Qb3 {[%emt 0:03:19]} Rad8 {[%emt 0:08:38]} 16. Rfd1 {[%emt 0:06:16]} Rd7 {[%emt 0:05:15]} 17. Rac1 {[%emt 0:04:35]} a6 {[%emt 0:02:21]} 18. a3 {[%emt 0:05:05]} Bd6 {[%emt 0:00:37]} 19. h3 {[%emt 0:06:40]} (19. g3 $15) 19... Qg5 {[%emt 0:03:06]} (19... Bf4 $17 {And now ...b5 would win.} 20. Rc2 e3) 20. Nd5 $15 {[%emt 0:03:30]} b5 {[%emt 0:08:17]} 21. Nxf6+ {[%emt 0:00:05]} gxf6 {[%emt 0:01:05]} 22. Bf1 {[%emt 0:01:20]} f5 {[%emt 0:01:24]} 23. Re1 {[%emt 0:05:04][%cal Bd1e1,Be1e2,Be2c2,Bc2c8][%mdl 32]} Bf4 {[%emt 0:02:36]} 24. Rc5 {[%emt 0:02:03][%cal Bc1c5,Bc5f5,Bf5g5][%mdl 32]} Rxd4 {[%emt 0:00:41]} (24... Re8 $5 {[%cal Rd7d4]} 25. g3 (25. g4 e3 $17) 25... Rxd4 $17) 25. g4 $1 {[%emt 0:00:56]} Bb8 {[%emt 0:10:26] [#] aiming for ...Qf4.} 26. Rxf5 {[%emt 0:00:17]} Qd2 {[%emt 0:00:06]} 27. Re2 {[%emt 0:05:16]} Qc1 {[%emt 0:00:52]} 28. Rc2 {[%emt 0:00:47] Prevents Qc7.} Qe1 {[%emt 0:00:14][%mdl 8192] [#]} (28... Qh6 $11) 29. Rc8 $3 {[%emt 0:01:08][%mdl 512]} Rd7 {[%emt 0:01:08]} (29... Bh2+ 30. Kxh2) 30. Rg5+ {[%emt 0:00:06] Weighted Error Value: White=0.13 (very precise) /Black=0.46} 1-0

[Event "93rd German Championship 2022"]
[Site "Magdeburg"]
[Date "2022.08.18"]
[Round "7.4"]
[White "Wachinger, Nikolas"]
[Black "Braun, Georg"]
[Result "1/2-1/2"]
[ECO "B38"]
[WhiteElo "2437"]
[BlackElo "2398"]
[Annotator "TA"]
[PlyCount "63"]
[EventDate "2022.08.14"]
[EventType "swiss"]
[EventCountry "GER"]
[SourceTitle "playchess.com"]
[Source "ChessBase"]
[SourceQuality "1"]
[TimeControl "40/5400+30:1800+30"]

{[%evp 11,63,29,37,50,45,22,25,20,20,14,10,0,0,0,0,-14,-6,-5,64,83,90,51,59,59,84,18,31,3,3,3,3,5,22,13,13,10,38,38,38,38,38,38,38,39,39,8,39,39,39,0,39,0,46,0]} 1. e4 {[%emt 0:02:07]} c5 {[%emt 0:00:10]} 2. Nf3 {[%emt 0:00:32]} g6 {[%emt 0:00:10]} 3. c4 {[%emt 0:02:05]} Bg7 {[%emt 0:00:17]} 4. d4 {[%emt 0:00:11]} cxd4 {[%emt 0:00:08]} 5. Nxd4 {[%emt 0:00:09]} Nc6 {[%emt 0:00:12]} 6. Be3 {[%emt 0:02:16]} Qb6 $1 {[%emt 0:00:14][%cal Rc6d4][%mdl 4] is recently more successful than 6...Nf6.} 7. Nb3 {[%emt 0:04:22] B38: Sicilian: Maroczy Bind with 5...Bg7 and 7...0-0.} Qd8 {[%emt 0:00:09]} 8. Nc3 {[%emt 0:03:22]} Bxc3+ {[%emt 0:00:16]} 9. bxc3 {[%emt 0:00:03] White has an edge.} Nf6 {[%emt 0:00:09]} 10. f3 {[%emt 0:18:03]} d6 {[%emt 0:00:46]} 11. Be2 {[%emt 0:14:10]} O-O {[%emt 0:01:17]} 12. O-O {[%emt 0:13:38]} b6 {[%emt 0:10:42]} 13. a4 {[%emt 0:09:06][%cal Oa4a5]} Qc7 {[%emt 0:17:00]} 14. a5 {[%emt 0:02:59] [#] Hoping for axb6.} Nxa5 {[%emt 0:10:42]} ({Black should play} 14... Ba6 $11) 15. Nxa5 $14 {[%emt 0:00:40]} bxa5 {[%emt 0:00:07]} 16. Qa4 {[%emt 0:00:44]} Be6 {[%emt 0:01:04]} 17. Qxa5 {[%emt 0:03:56]} Rfc8 {[%emt 0:01:16] [#]} 18. Qxc7 {[%emt 0:05:28] White is more active.} (18. c5 $1 $16) 18... Rxc7 $11 {[%emt 0:00:07] [#]} 19. Ra4 $146 {[%emt 0:01:00]} (19. c5 $5) ({Predecessor:} 19. Bb6 Rc6 20. c5 dxc5 21. Rxa7 Rb8 22. Bc7 Rb2 23. Re1 Nd7 24. Bf4 h5 25. h4 {0-1 (63) Rasulov,V (2533)-Vakhidov,D (2190) Chess.com INT 2018}) 19... Nd7 $1 {[%emt 0:09:18]} 20. Rfa1 {[%emt 0:00:33][%cal Ra4a7]} Nc5 {[%emt 0:03:48]} 21. Ra5 {[%emt 0:00:55]} f6 {[%emt 0:09:09]} 22. Kf2 {[%emt 0:00:48]} Kf7 {[%emt 0:02:28]} 23. Bxc5 {[%emt 0:02:42]} dxc5 {[%emt 0:00:25]} 24. Ke3 {[%emt 0:00:12]} Bc8 {[%emt 0:01:57]} 25. f4 {[%emt 0:00:38]} e5 {[%emt 0:02:58]} 26. fxe5 {[%emt 0:03:25]} fxe5 {[%emt 0:00:09]} 27. Rb1 {[%emt 0:01:43]} Ke7 {[%emt 0:02:27]} 28. Rd1 {[%emt 0:01:10]} Be6 {[%emt 0:00:56]} 29. Rda1 {[%emt 0:00:32]} Bc8 {[%emt 0:03:10]} 30. Rd1 {[%emt 0:00:07]} Be6 {[%emt 0:01:57] Against Rd5} 31. Rda1 {[%emt 0:00:07]} Bc8 {[%emt 0:00:40]} 32. Rd1 {Weighted Error Value: White=0.14 (very precise) /Black=0.08 (flawless)} (32. Rb1 $14) 1/2-1/2

[Event "93rd German Championship 2022"]
[Site "Magdeburg"]
[Date "2022.08.18"]
[Round "7.5"]
[White "Becker, Michael"]
[Black "Farokhi, Keyvan"]
[Result "0-1"]
[ECO "B91"]
[WhiteElo "2270"]
[BlackElo "2332"]
[Annotator "TA"]
[PlyCount "84"]
[EventDate "2022.08.14"]
[EventType "swiss"]
[EventCountry "GER"]
[SourceTitle "playchess.com"]
[Source "ChessBase"]
[SourceQuality "1"]
[TimeControl "40/5400+30:1800+30"]

{[%evp 11,84,22,20,0,0,0,0,0,20,21,14,0,0,0,0,0,0,0,4,14,2,0,29,31,30,-10,-12,-44,-22,-116,-107,-118,-54,-59,-56,-70,-47,-45,-43,-99,-100,-83,-77,-104,0,0,0,0,0,-20,-21,-23,-23,-34,-48,-97,-16,-135,-145,-131,-133,-191,-191,-192,-163,-467,-462,-413,0,-607,-582,-654,-600,-5206,-1909]} 1. e4 {[%emt 0:00:06]} c5 {[%emt 0:00:08]} 2. Nf3 {[%emt 0:00:15]} d6 {[%emt 0:00:07]} 3. d4 {[%emt 0:00:38]} cxd4 {[%emt 0:00:10]} 4. Nxd4 {[%emt 0:00:04]} Nf6 {[%emt 0:00:08]} 5. Nc3 {[%emt 0:00:11]} a6 {[%emt 0:00:05]} 6. g3 {[%emt 0:00:21]} e5 {[%emt 0:00:08]} 7. Nf3 {[%emt 0:00:20] B91: Sicilian Najdorf: 6 g3.} Be7 {[%emt 0:04:26]} 8. Bg2 {[%emt 0:00:13]} O-O {[%emt 0:00:42]} 9. O-O {[%emt 0:00:09] The position is equal.} Be6 {[%emt 0:03:44]} 10. Nh4 {[%emt 0:02:48]} g6 {[%emt 0:05:34]} 11. Bh6 {[%emt 0:03:13]} Re8 {[%emt 0:00:05]} 12. h3 {[%emt 0:00:35] Against Ng4} Nbd7 {[%emt 0:10:42]} 13. Qd2 {[%emt 0:06:03][%cal Oh4f5] [#]} Kh8 $146 {[%emt 0:02:57]} ({Predecessor:} 13... Nf8 14. a4 Qc7 15. Nf3 Bd7 16. Ng5 Ne6 17. Nxe6 Bxe6 18. Nd5 Bxd5 19. exd5 Nd7 {0-1 (73) Guo,A (2301)-Brodsky,D (2479) Charlotte 2020}) 14. Nf3 {[%emt 0:10:44]} Qc7 {[%emt 0:04:24]} 15. Rfe1 {[%emt 0:16:35]} Rac8 {[%emt 0:03:03]} 16. Ng5 {[%emt 0:03:21]} Nb6 {[%emt 0:00:34]} 17. Nxe6 {[%emt 0:01:18]} fxe6 {[%emt 0:00:09]} 18. Bf1 {[%emt 0:01:25]} d5 {[%emt 0:04:58]} 19. Bd3 {[%emt 0:04:42]} Bb4 {[%emt 0:07:42]} 20. Qg5 {[%emt 0:01:25]} (20. a3 $11 Bxc3 21. bxc3) 20... Ng8 $17 {[%emt 0:01:01]} 21. Rf1 {[%emt 0:09:20]} Be7 {[%emt 0:11:22]} ({Black should play} 21... d4 $17 {White must now prevent ...Be7.} 22. Ne2 Nc4) 22. Qc1 $1 $15 {[%emt 0:00:47]} Nxh6 {[%emt 0:04:50]} 23. Qxh6 {[%emt 0:00:08]} Qd8 {[%emt 0:00:12] Threatens to win with ...Bg5.} 24. h4 {[%emt 0:00:55] Prevents Bg5.} ({Don't blunder} 24. exd5 $2 Bg5 25. Qxg5 Qxg5 $19) 24... Bf8 {[%emt 0:00:11]} 25. Qg5 {[%emt 0:01:32]} (25. Qc1 $15) 25... Qxg5 $17 {[%emt 0:00:48]} 26. hxg5 {[%emt 0:00:05]} Bb4 {[%emt 0:02:14]} 27. Nd1 {[%emt 0:01:59]} Nc4 {[%emt 0:02:51] Black is more active.} (27... Be7 $17 28. Ne3 Bxg5) 28. Bxc4 $11 {[%emt 0:02:11]} Rxc4 {[%emt 0:00:09]} 29. exd5 {[%emt 0:00:20]} Rxc2 {[%emt 0:03:13]} 30. dxe6 {[%emt 0:01:24]} Rxe6 {[%emt 0:01:38]} 31. Ne3 {[%emt 0:06:23]} Rxb2 {[%emt 0:00:24]} 32. Rac1 {[%emt 0:02:03]} Rc6 {[%emt 0:04:34]} 33. Ng4 {[%emt 0:03:04] [#]} (33. Rxc6 $15 {is more appropriate.} bxc6 34. Rc1) 33... Rxa2 {[%emt 0:03:41]} (33... Bc3 $1 $17 34. Rb1 b6 35. Rxb2 Bxb2) 34. Rxc6 {[%emt 0:04:15]} (34. Rb1 $11 {keeps the balance.} a5 35. Rfd1) 34... bxc6 $17 {[%emt 0:00:34]} 35. Nxe5 {[%emt 0:00:06][%mdl 4096] Endgame KRB-KRN} c5 {[%emt 0:02:20]} 36. Rd1 {[%emt 0:02:42]} (36. Kg2 $17 {might work better.}) 36... Rd2 $19 {[%emt 0:01:27]} 37. Re1 {[%emt 0:00:26]} Rd5 {[%emt 0:01:30]} 38. Nf7+ $2 {[%emt 0:00:38]} (38. Re4 {is tougher.}) 38... Kg7 {[%emt 0:01:16]} 39. Re7 {[%emt 0:00:20]} c4 $2 {[%emt 0:02:06]} (39... Kf8 $19 40. Rb7 a5) 40. Rb7 {[%emt 0:01:08][%mdl 8192] [#]} (40. Nd6+ $11 Kh8 41. Re8+ Kg7 42. Re7+ Kh8 43. Re8+ Kg7 44. Re7+) 40... c3 $1 {[%emt 0:01:46][%cal Bc4c3,Bc3c2][%mdl 32] Black is clearly winning.} 41. Nd8+ {[%emt 0:31:48]} (41. Ne5+ Kg8) 41... Kg8 {[%emt 0:30:55] Hoping for ...c2.} 42. Ne6 {[%emt 0:06:55]} c2 {[%emt 0:00:45] Weighted Error Value: White=0.56/Black=0.24 (precise)} 0-1

[Event "93rd German Championship 2022"]
[Site "Magdeburg"]
[Date "2022.08.18"]
[Round "7.6"]
[White "Richter, Nils"]
[Black "Krassowizkij, Jaroslaw"]
[Result "1/2-1/2"]
[ECO "D78"]
[WhiteElo "2359"]
[BlackElo "2428"]
[Annotator "TA"]
[PlyCount "80"]
[EventDate "2022.08.14"]
[EventType "swiss"]
[EventCountry "GER"]
[SourceTitle "playchess.com"]
[Source "ChessBase"]
[SourceQuality "1"]
[TimeControl "40/5400+30:1800+30"]

{[%evp 11,80,0,22,0,29,9,12,7,7,0,12,0,7,0,1,-20,-12,-8,36,54,54,0,0,0,0,0,7,0,0,0,0,0,0,0,0,0,0,0,0,0,0,0,0,0,0,0,0,-6,0,0,0,0,0,-6,0,0,0,0,0,0,0,0,0,0,0,0,0,0,0,0,0]} 1. d4 {[%emt 0:00:01]} Nf6 {[%emt 0:00:04]} 2. c4 {[%emt 0:00:10]} g6 {[%emt 0:00:04]} 3. g3 {[%emt 0:02:53]} c6 {[%emt 0:00:12]} 4. Bg2 {[%emt 0:00:38]} d5 {[%emt 0:00:03]} 5. Nf3 {[%emt 0:00:30]} Bg7 {[%emt 0:00:05]} 6. O-O {[%emt 0:00:08]} O-O {[%emt 0:00:04]} 7. a4 {[%emt 0:00:46] D78: Fianchetto Grünfeld: 6 0-0 c6.} b6 {[%emt 0:04:59]} 8. cxd5 {[%emt 0:07:14]} cxd5 {[%emt 0:00:06]} 9. Nc3 {[%emt 0:00:11]} Nc6 {[%emt 0:03:53][%cal Bb8c6,Bc6e5,Be5c4][%mdl 32]} 10. Ne5 {[%emt 0:02:38]} Bb7 {[%emt 0:01:10] [#]} 11. Bf4 $146 {[%emt 0:03:38]} ({Predecessor:} 11. Bg5 Nxe5 12. dxe5 Ne4 13. Bxe4 dxe4 14. Qxd8 Rfxd8 15. Bxe7 Rd2 16. Bd6 Rxb2 17. a5 bxa5 18. Rxa5 {½-½ (38) Afonasieva,A (2245)-Bauyrzhan,A (2011) Porto Carras 2018}) 11... Ne4 {[%emt 0:15:18]} 12. Nxe4 {[%emt 0:26:25] [#] aiming for Nc3.} Nxe5 {[%emt 0:00:34]} 13. Nc3 {[%emt 0:00:13]} Nc4 {[%emt 0:06:39]} 14. b3 {[%emt 0:03:52]} Nd6 {[%emt 0:11:23]} 15. Nxd5 {[%emt 0:03:04]} ({Much weaker is} 15. Bxd5 Bxd5 16. Nxd5 Ne4 $15) 15... e6 {[%emt 0:00:34]} 16. Ne7+ {[%emt 0:12:58]} Qxe7 $11 {[%emt 0:00:09] The position is equal.} 17. Bxd6 {[%emt 0:00:06][%mdl 64] [#] Remove Defender} Qxd6 {[%emt 0:00:03]} 18. Bxb7 {[%emt 0:00:15]} Rab8 {[%emt 0:00:08]} 19. Bf3 {[%emt 0:00:17]} Qxd4 {[%emt 0:00:36]} 20. Qxd4 {[%emt 0:00:36]} Bxd4 {[%emt 0:00:04]} 21. Rad1 {[%emt 0:01:32]} Rfd8 {[%emt 0:00:21]} 22. e3 {[%emt 0:00:16]} Bc5 {[%emt 0:00:07]} 23. Rxd8+ {[%emt 0:00:40]} Rxd8 {[%emt 0:00:03]} 24. Rd1 {[%emt 0:00:09]} Rxd1+ {[%emt 0:00:03]} 25. Bxd1 {[%emt 0:00:10][%mdl 4096] Endgame KB-KB} a5 {[%emt 0:00:05]} 26. Be2 {[%emt 0:00:13]} Kg7 {[%emt 0:00:31]} 27. Bc4 {[%emt 0:00:31]} e5 {[%emt 0:00:15]} 28. e4 {[%emt 0:00:24]} g5 {[%emt 0:00:09]} 29. g4 {[%emt 0:00:12]} Bd4 {[%emt 0:00:09]} 30. Kg2 {[%emt 0:00:05]} f6 {[%emt 0:00:07]} 31. f3 {[%emt 0:00:06]} h6 {[%emt 0:00:04]} 32. h3 {[%emt 0:00:05]} Bc5 {[%emt 0:00:06]} 33. Kf1 {[%emt 0:00:06]} Kf8 {[%emt 0:00:09]} 34. Ke2 {[%emt 0:00:06]} Ke7 {[%emt 0:00:06]} 35. Kd3 {[%emt 0:00:07]} Kd6 {[%emt 0:00:02]} 36. Bg8 {[%emt 0:00:12]} Bg1 {[%emt 0:00:10]} 37. Kc4 {[%emt 0:00:06]} Bf2 {[%emt 0:00:11]} 38. Bf7 {[%emt 0:00:14]} Bg1 {[%emt 0:00:06]} 39. Bg8 {[%emt 0:00:05]} Bf2 {[%emt 0:00:05]} 40. Bf7 {[%emt 0:00:05]} Bg1 {Weighted Error Value: White=0.05 (flawless) /Black=0.05 (flawless)} 1/2-1/2

[Event "93rd German Championship 2022"]
[Site "Magdeburg"]
[Date "2022.08.18"]
[Round "7.7"]
[White "Costa, Leonardo"]
[Black "Pajeken, Jakob Leon"]
[Result "1-0"]
[ECO "B90"]
[WhiteElo "2316"]
[BlackElo "2434"]
[Annotator "TA"]
[PlyCount "61"]
[EventDate "2022.08.14"]
[EventType "swiss"]
[EventCountry "GER"]
[SourceTitle "playchess.com"]
[Source "ChessBase"]
[SourceQuality "1"]
[TimeControl "40/5400+30:1800+30"]

{[%evp 9,60,14,19,0,0,0,0,0,0,-10,0,-14,-14,-12,-21,-22,-25,-21,-7,-60,-47,-105,-54,-59,4,20,6,0,0,0,22,19,13,21,8,16,12,12,15,13,80,58,59,69,51,56,258,99,29986,29986,29997,29998,29999]} 1. e4 {[%emt 0:00:18]} c5 {[%emt 0:00:04]} 2. Nf3 {[%emt 0:00:06]} d6 {[%emt 0:00:09]} 3. d4 {[%emt 0:00:03]} cxd4 {[%emt 0:00:06]} 4. Nxd4 {[%emt 0:00:03]} Nf6 {[%emt 0:00:04]} 5. Nc3 {[%emt 0:00:04]} a6 {[%emt 0:00:03]} 6. h4 {[%emt 0:00:15] B90: Sicilian Najdorf: Unusual White 6th moves, 6 Be3 Ng4 and 6 Be3 e5.} e5 {[%emt 0:00:08]} 7. Nb3 {[%emt 0:00:04]} Be7 {[%emt 0:00:06]} 8. Be2 {[%emt 0:00:04] The position is equal.} Be6 {[%emt 0:10:10]} 9. f4 {[%emt 0:00:07]} b5 {[%emt 0:04:44][%cal Bb7b5,Bb5b4][%mdl 32]} 10. g4 {[%emt 0:00:05] Hoping for f5.} b4 {[%emt 0:25:26]} 11. Nd5 {[%emt 0:00:12]} Nxd5 {[%emt 0:01:15]} 12. exd5 {[%emt 0:00:08]} Bc8 {[%emt 0:00:42]} 13. g5 {[%emt 0:00:18]} Nd7 {[%emt 0:02:42] [#]} 14. O-O $146 {[%emt 0:00:10]} (14. Be3 $11) ({Predecessor:} 14. f5 h6 15. Rg1 hxg5 16. hxg5 Nb6 17. Qd3 a5 18. Be3 a4 19. Qb5+ Bd7 20. Qxb6 Qxb6 21. Bxb6 axb3 22. cxb3 Bxf5 {0-1 (64) Steinberg,N (2542)-Bok,B (2616) Chess.com INT 2022}) 14... Qb6+ {[%emt 0:08:26]} 15. Kh2 {[%emt 0:05:04]} (15. Rf2 $15) 15... Bb7 {[%emt 0:09:30]} ({Better is} 15... h6 $17 {aiming for ...hxg5.} 16. g6 O-O 17. fxe5 Nxe5) 16. a3 {[%emt 0:07:55]} a5 {[%emt 0:08:11]} ({Black should try} 16... h6 $1 $15) 17. axb4 $11 {[%emt 0:09:41]} axb4 {[%emt 0:00:28]} 18. Rxa8+ {[%emt 0:00:04]} Bxa8 {[%emt 0:00:03]} 19. Qd3 {[%emt 0:03:02]} exf4 {[%emt 0:04:27]} 20. Bxf4 {[%emt 0:00:35]} O-O {[%emt 0:00:57]} 21. Qe4 {[%emt 0:07:16] Prevents Ne5.} Ne5 {[%emt 0:00:25]} 22. Nd4 {[%emt 0:00:41] And now Nf5 would win.} g6 {[%emt 0:01:37] Prevents Nf5.} 23. Bxe5 $40 {[%emt 0:27:29][%mdl 128] White is up to no good.} dxe5 {[%emt 0:00:16]} 24. Nc6 {[%emt 0:00:02]} ({Don't blunder} 24. Qxe5 $2 Bd6 25. Qf4 Qc7 $19) 24... Bxc6 {[%emt 0:03:55]} (24... Qc7 $11 {remains equal.}) 25. dxc6 $16 {[%emt 0:00:04]} Qc7 {[%emt 0:01:08]} 26. Bc4 {[%emt 0:00:47][%cal Oh4h5] Black must now prevent h5!} Kg7 $1 {[%emt 0:00:23]} 27. Qd5 {[%emt 0:10:39][%cal Rf1f7]} f6 {[%emt 0:01:04]} (27... Bd8 $1 $14) 28. Qe6 $2 {[%emt 0:03:29]} (28. Kg2 $18) 28... Qd8 $2 {[%emt 0:03:46][%mdl 8192] [#]} (28... e4+ $16 29. Kg2 Bd8) 29. Rd1 $3 {[%emt 0:00:24][%mdl 512] White mates.} Qxd1 {[%emt 0:02:16]} (29... fxg5 30. Rxd8) 30. Qxe7+ {[%emt 0:00:03]} Kh8 {[%emt 0:00:03]} 31. Qxf8# {[%emt 0:00:03] Weighted Error Value: White=0.16 (very precise) /Black=0.40} 1-0

[Event "93rd German Championship 2022"]
[Site "Magdeburg"]
[Date "2022.08.18"]
[Round "7.8"]
[White "Gungl, Theo"]
[Black "Bracker, Arne"]
[Result "1/2-1/2"]
[ECO "E46"]
[WhiteElo "2359"]
[BlackElo "2277"]
[Annotator "TA"]
[PlyCount "80"]
[EventDate "2022.08.14"]
[EventType "swiss"]
[EventCountry "GER"]
[SourceTitle "playchess.com"]
[Source "ChessBase"]
[SourceQuality "1"]
[TimeControl "40/5400+30:1800+30"]

{[%evp 16,80,0,-13,17,0,0,0,0,0,0,-12,14,-17,73,-24,31,21,26,0,0,0,31,33,35,27,25,0,0,0,0,0,33,0,0,0,0,0,0,0,0,0,0,0,0,0,0,0,0,0,0,0,0,0,0,0,0,0,0,0,0,0,0,0,0,0,0]} 1. d4 {[%emt 0:00:03]} Nf6 {[%emt 0:03:39]} 2. c4 {[%emt 0:00:03]} e6 {[%emt 0:00:07]} 3. Nc3 {[%emt 0:00:05]} Bb4 {[%emt 0:00:08]} 4. e3 {[%emt 0:00:07]} O-O {[%emt 0:00:25]} 5. Bd2 {[%emt 0:00:05]} d5 {[%emt 0:01:15]} 6. Nf3 {[%emt 0:00:06]} b6 {[%emt 0:00:27]} 7. cxd5 {[%emt 0:00:07]} exd5 {[%emt 0:00:07]} 8. Bd3 {[%emt 0:00:07]} Bb7 {[%emt 0:00:24]} 9. O-O {[%emt 0:00:09]} Re8 {[%emt 0:00:17] E52: Nimzo-Indian: Rubinstein: 4...0-0 5 Nf3 d5 6 Bd3 b6.} 10. Rc1 {[%emt 0:01:34]} Bf8 {[%emt 0:00:28]} 11. Ne5 {[%emt 0:02:20]} c5 {[%emt 0:00:46]} 12. f4 {[%emt 0:02:26]} Nc6 {[%emt 0:01:08]} 13. Ne2 {[%emt 0:34:16]} Rc8 {[%emt 0:00:50] [#]} 14. Bc3 $146 {[%emt 0:06:08]} ({Predecessor:} 14. Be1 Ne4 15. Bxe4 dxe4 16. Nxf7 Qd5 17. Ne5 Nxe5 18. dxe5 Qxa2 19. Bc3 Qd5 20. Qe1 {1-0 (45) Maghsoodloo,P (2701)-Firouzja,A (2804) Warsaw 2021}) 14... Ne4 {[%emt 0:11:41]} (14... Rc7 $11) 15. Ng3 {[%emt 0:01:59]} (15. Bxe4 $16 dxe4 16. Qa4 (16. Qb3 Nxe5 17. dxe5 Qd3 $15)) 15... cxd4 {[%emt 0:31:26]} (15... Nxg3 $11 16. hxg3 Rc7) 16. exd4 $14 {[%emt 0:00:37]} Nb4 {[%emt 0:18:23]} 17. Bxb4 {[%emt 0:08:09]} (17. Bb1 {feels hotter.} Rc7 18. a3 Nxg3 19. hxg3 Nc6 20. Bd3) 17... Rxc1 {[%emt 0:04:57]} ({Resist} 17... Bxb4 18. Rxc8 Bxc8 19. Nxe4 (19. Bxe4 dxe4 20. Nxf7 Qd5 $11) 19... dxe4 20. Bxe4 $16) 18. Qxc1 {[%emt 0:00:02] [#] Hoping for Bxf8.} Nxg3 {[%emt 0:00:17]} 19. hxg3 {[%emt 0:06:23]} Bxb4 {[%emt 0:00:13]} 20. Qc2 {[%emt 0:01:48]} g6 {[%emt 0:01:39]} 21. Bb5 {[%emt 0:09:02]} Re7 {[%emt 0:01:45]} 22. Qa4 {[%emt 0:02:50]} a5 {[%emt 0:01:55]} 23. a3 {[%emt 0:01:02]} Bd2 {[%emt 0:05:30]} 24. Qb3 {[%emt 0:02:50] [#] Black must now prevent Qd3.} f6 {[%emt 0:01:27] The position is equal.} 25. Ng4 {[%emt 0:01:55]} Kg7 {[%emt 0:01:44]} 26. Qd3 {[%emt 0:04:17]} Bc8 {[%emt 0:01:09]} 27. Qxd2 {[%emt 0:01:39]} Bxg4 {[%emt 0:02:26]} 28. Re1 {[%emt 0:00:39]} Bd7 {[%emt 0:02:42]} 29. Bd3 {[%emt 0:01:08]} Rxe1+ {[%emt 0:00:38]} 30. Qxe1 $11 {[%emt 0:00:02][%mdl 4096] Endgame KQB-KQB} Qe8 {[%emt 0:00:11]} 31. Qc1 {[%emt 0:02:17]} Qc8 {[%emt 0:01:02] Prevents Qc7.} 32. Qxc8 {[%emt 0:02:25]} Bxc8 {[%emt 0:00:01] KB-KB} 33. Kf2 {[%emt 0:00:08]} Bd7 {[%emt 0:01:20]} 34. Ke3 {[%emt 0:00:18]} Kf7 {[%emt 0:00:25]} 35. Be2 {[%emt 0:01:33]} h5 {[%emt 0:01:39]} 36. Bf3 {[%emt 0:00:41]} Be6 {[%emt 0:00:55]} 37. Be2 {[%emt 0:00:58]} Ke7 {[%emt 0:00:46]} 38. Bd3 {[%emt 0:00:09]} Bf5 {[%emt 0:01:21]} 39. Bxf5 {[%emt 0:00:18]} gxf5 {[%emt 0:00:01]} 40. a4 {[%emt 0:00:09]} Ke6 {[%emt 0:00:25] Weighted Error Value: White=0.11 (very precise) /Black=0.13 (very precise)} 1/2-1/2